bitfinex/quotes_ETHUSD_20220226
["timestamp","ask_amount","ask_price","bid_price","bid_amount"]
[1645876651065,0.00397007,2757.3,2756.4,11.03]
[1645876651265,0.00397007,2757.3,2756.8,1.02450938]
[1645876651466,0.91713983,2757.4,2756.5,0.1449]
[1645876651671,0.00497449,2757.0,2756.4,0.1449]
[1645876651867,0.00497449,2757.0,2756.3,0.1451]
[1645876652314,0.00497449,2757.0,2756.6,1.21469072]
[1645876652515,0.00497449,2757.0,2756.3,0.1451]
[1645876652717,0.91713983,2757.1,2756.3,0.1451]
[1645876652917,0.91713983,2757.1,2756.2,0.3]
[1645876653220,0.00397007,2757.0,2756.2,0.3]
[1645876653418,0.00397007,2757.0,2756.1,1.4898]
[1645876653619,0.00397007,2757.0,2756.1,1.2398]
[1645876653620,4.4211099,2757.0,2756.1,1.2398]
[1645876653820,1.37462887,2757.3,2756.1,1.2398]
[1645876653821,4.41713983,2756.9,2756.1,1.2398]
[1645876654020,1.37462887,2757.1,2755.5,1.2775]
[1645876654021,4.41713983,2756.8,2755.5,1.2775]
[1645876654221,0.91713983,2756.7,2755.5,1.2775]
[1645876654419,0.00397007,2756.6,2755.5,1.2775]
[1645876654721,0.9211099,2756.6,2755.5,1.2775]
[1645876654919,0.91713983,2756.6,2755.5,3.4636589]
[1645876655320,0.91713983,2756.6,2755.5,3.3185589]
[1645876656164,0.91713983,2756.6,2755.5,2.0400218]
[1645876656561,0.00497919,2756.2,2755.5,2.0400218]
[1645876657366,0.91713983,2756.5,2755.5,2.0400218]
[1645876658565,0.91713983,2756.5,2755.6,1.26902269]
[1645876658963,0.00397007,2756.7,2755.6,1.26902269]
[1645876658964,0.91713983,2756.6,2755.6,1.26902269]
[1645876659164,0.91713983,2756.6,2755.6,2.17660269]
[1645876659366,0.91713983,2756.5,2755.5,0.9076218]
[1645876660017,0.91713983,2756.5,2755.5,1.0891418]
[1645876660219,0.91713983,2756.6,2755.8,0.9075266]
[1645876660720,0.00397007,2756.8,2755.8,0.9075266]
[1645876660721,0.9211099,2756.8,2755.8,0.9075266]
[1645876661319,0.9211099,2756.8,2755.9,0.1815]
[1645876661320,0.00498319,2756.4,2755.9,0.1815]
[1645876662319,0.9211099,2756.8,2755.9,0.1815]
[1645876662521,0.00498329,2756.3,2755.7,0.18152]
[1645876662719,0.00498329,2756.3,2755.7,0.48152]
[1645876663372,0.00397007,2756.8,2755.9,1.15148533]
[1645876663778,0.00498339,2756.1,2755.9,1.15148533]
[1645876663975,0.00498339,2756.1,2755.8,1.2412]
[1645876664678,0.00397007,2756.8,2755.8,1.2412]
[1645876664875,0.00397007,2756.8,2755.8,2.1487233]
[1645876664876,0.00498342,2756.1,2755.8,2.1487233]
[1645876665076,0.00498342,2756.1,2755.9,1.36333564]
[1645876665783,0.00397007,2756.8,2755.9,1.36333564]
[1645876666177,0.00498339,2756.1,2755.9,1.36333564]
[1645876666578,0.00498339,2756.1,2755.9,12.39333564]
[1645876666779,0.00498339,2756.1,2755.9,1.36333564]
[1645876667034,0.00397007,2756.8,2755.9,1.36333564]
[1645876667417,0.00498339,2756.1,2755.9,1.36333564]
[1645876667617,0.00498339,2756.1,2756.0,11.03]
[1645876667817,0.00498339,2756.1,2755.9,1.36333564]
[1645876668219,0.00397007,2756.8,2755.9,1.36333564]
[1645876668619,0.00498339,2756.1,2755.9,1.36333564]
[1645876669020,0.00498339,2756.1,2756.0,11.03]
[1645876669219,0.00498339,2756.1,2755.9,1.36333564]
[1645876669421,0.00397007,2756.8,2755.9,1.36333564]
[1645876669623,4.12023983,2757.0,2755.9,1.36333564]
[1645876669826,0.00498335,2756.2,2755.9,1.36333564]
[1645876670425,0.00498335,2756.2,2755.8,1.2412]
[1645876670626,4.12023983,2757.0,2755.8,1.2412]
[1645876670887,4.12023983,2757.0,2755.9,11.03]
[1645876670888,0.00498335,2756.2,2755.9,11.03]
[1645876671493,0.00498335,2756.2,2756.0,12.16152462]
[1645876671894,4.12023983,2757.0,2756.0,12.16152462]
[1645876672293,0.00498332,2756.2,2756.0,12.16152462]
[1645876672892,0.00498332,2756.2,2756.0,1.13152462]
[1645876673095,4.12023983,2757.0,2756.0,1.13152462]
[1645876673294,0.00481884,2756.2,2756.0,1.13152462]
[1645876673697,0.00481884,2756.2,2755.8,4.8002]
[1645876673894,0.00481884,2756.2,2755.8,4.5002]
[1645876674398,5.39060983,2757.0,2755.6,1.8150327]
[1645876674399,0.00312097,2756.1,2755.6,1.8150327]
[1645876675224,0.00312097,2756.1,2755.6,2.7226227]
[1645876675427,3.5,2756.5,2755.4,0.25]
[1645876675626,2.08043983,2756.6,2755.1,0.1451]
[1645876675627,0.3165,2756.2,2755.1,0.1451]
[1645876675826,0.00312097,2756.0,2755.1,0.1451]
[1645876676626,5.41713983,2756.2,2755.1,0.1451]
[1645876676825,5.41713983,2756.2,2755.2,0.00498769]
[1645876677028,0.00498674,2755.7,2755.2,0.00498769]
[1645876677927,5.42803983,2756.3,2755.2,0.00498769]
[1645876677928,4.06533983,2756.3,2755.3,1.53344606]
[1645876678127,0.00498663,2755.7,2755.3,1.53344606]
[1645876678762,0.00498663,2755.7,2755.3,2.44113606]
[1645876678960,0.00498663,2755.7,2755.3,0.90769]
[1645876679165,4.06533983,2756.3,2755.4,1.02614912]
[1645876679366,0.00498668,2755.7,2755.4,1.02614912]
[1645876680266,0.91713983,2756.3,2755.4,1.02614912]
[1645876680465,0.91713983,2756.3,2755.3,1.08923]
[1645876680466,0.00498674,2755.7,2755.3,1.08923]
[1645876681467,0.91713983,2756.3,2755.3,2.15054697]
[1645876681670,0.00498668,2755.7,2755.3,1.08923]
[1645876682111,0.00498668,2755.7,2755.2,0.00498763]
[1645876682614,0.91713983,2756.0,2755.1,0.1451]
[1645876682911,0.91713983,2756.0,2755.2,0.00498758]
[1645876682912,0.00498663,2755.7,2755.2,0.00498758]
[1645876683311,0.92212646,2755.7,2755.2,0.00498758]
[1645876683914,0.91713983,2755.7,2754.9,0.01623598]
[1645876684110,0.92212646,2755.7,2755.2,0.00498758]
[1645876685116,0.91713983,2755.7,2754.9,0.01623598]
[1645876685317,0.91713983,2755.5,2755.2,0.00498758]
[1645876686361,0.91713983,2755.5,2754.9,0.01623598]
[1645876686566,0.91713983,2755.5,2755.2,0.00498746]
[1645876686762,0.91713983,2755.6,2755.2,0.00498746]
[1645876687572,0.91713983,2755.6,2754.9,0.01623598]
[1645876687770,0.91713983,2755.6,2755.2,0.00463554]
[1645876688773,0.91713983,2755.6,2754.9,0.01623598]
[1645876688975,0.91713983,2755.6,2755.2,0.00463554]
[1645876689178,0.91713983,2755.5,2755.2,0.00463554]
[1645876689827,0.91713983,2755.5,2754.8,0.25]
[1645876690025,0.91713983,2755.5,2754.5,0.00330826]
[1645876690226,0.91713983,2755.5,2755.2,0.00463549]
[1645876690830,0.0046346,2755.7,2755.2,0.00463549]
[1645876690831,0.91713983,2755.6,2755.2,0.00463549]
[1645876691028,0.91713983,2755.6,2754.6,0.02185445]
[1645876691227,0.00108697,2755.2,2754.6,0.00330826]
[1645876691428,0.00108697,2755.2,2754.6,0.01854619]
[1645876692231,0.00108697,2755.2,2754.5,1.05305]
[1645876692628,0.00108697,2755.2,2754.8,0.00467027]
[1645876693459,0.00108697,2755.2,2754.6,0.00330826]
[1645876693660,0.00108697,2755.2,2754.5,0.1451]
[1645876693863,0.00108697,2755.2,2754.9,0.0046702]
[1645876694665,0.00108697,2755.2,2754.6,0.00330826]
[1645876694865,0.00108697,2755.2,2754.9,0.00467017]
[1645876695969,0.00108697,2755.2,2754.6,0.00330826]
[1645876696166,0.00108697,2755.2,2754.9,0.00329078]
[1645876697307,0.00108697,2755.2,2754.6,0.00330826]
[1645876697508,0.00108697,2755.2,2754.4,3.59022131]
[1645876699113,0.00108697,2755.2,2754.5,2.44179023]
[1645876699311,0.00108697,2755.2,2754.5,1.08954]
[1645876699719,0.00108697,2755.2,2754.7,0.00498774]
[1645876700759,0.00108697,2755.2,2754.5,1.08954]
[1645876701159,0.00108697,2755.2,2754.8,0.00498768]
[1645876701960,0.00108697,2755.2,2754.6,0.00330826]
[1645876702164,0.00108697,2755.2,2754.5,1.08954]
[1645876704516,0.00108697,2755.2,2754.7,0.00497231]
[1645876705521,0.00108697,2755.2,2754.5,1.08954]
[1645876706521,0.00108697,2755.2,2754.6,1.53375112]
[1645876706720,0.00108697,2755.2,2754.5,1.08954]
[1645876708360,0.00314238,2755.4,2755.2,0.00035225]
[1645876709161,5.24453983,2755.8,2755.2,0.00035225]
[1645876709162,5.54453983,2755.8,2755.2,0.00035225]
[1645876709361,0.00314152,2755.4,2755.2,0.00035225]
[1645876710366,0.91713983,2755.7,2755.2,0.00035225]
[1645876710566,0.00314152,2755.4,2755.2,0.00035225]
[1645876711472,0.91713983,2755.7,2755.2,0.00035225]
[1645876711669,0.00314152,2755.4,2755.2,0.00035225]
[1645876712613,0.91713983,2755.7,2755.2,0.00035225]
[1645876713312,0.87211634,2755.7,2755.2,0.00035225]
[1645876713616,8.1274,2755.8,2755.2,0.00035225]
[1645876713816,4.6274,2755.8,2755.2,0.00035225]
[1645876715020,6.00202887,2755.8,2755.2,0.00035225]
[1645876715423,0.00313971,2755.6,2755.2,0.00035225]
[1645876716265,6.00202887,2755.8,2755.2,0.00035225]
[1645876716670,0.00313971,2755.5,2755.2,0.00035225]
[1645876717573,1.37462887,2755.7,2755.2,0.00035225]
[1645876717776,0.0049764,2755.5,2755.2,0.0053293]
[1645876718675,1.37462887,2755.7,2755.2,0.00035225]
[1645876718976,0.0049764,2755.5,2755.2,0.0053293]
[1645876720029,1.37462887,2755.7,2755.2,0.00035225]
[1645876720332,0.0049764,2755.5,2755.2,0.0053293]
[1645876721131,3.3274,2755.8,2755.2,0.00035225]
[1645876721431,3.3274,2755.8,2755.2,0.0053293]
[1645876721432,0.0049764,2755.5,2755.2,0.0053293]
[1645876722432,0.91699119,2755.6,2755.2,0.00035225]
[1645876722633,0.0049764,2755.5,2755.2,0.0053293]
[1645876723036,0.92196759,2755.5,2755.2,0.0053293]
[1645876723476,0.0049764,2755.5,2755.2,0.0053293]
[1645876723675,0.91699119,2755.6,2755.2,0.0053293]
[1645876723676,0.91699119,2755.6,2755.2,0.00035225]
[1645876723876,0.92196759,2755.5,2755.2,0.0053293]
[1645876724277,0.91699119,2755.4,2755.2,0.0053293]
[1645876724677,0.91699119,2755.4,2755.2,0.00035225]
[1645876725077,0.91699119,2755.4,2755.2,0.00532927]
[1645876725978,0.91699119,2755.4,2755.2,0.00035225]
[1645876726179,3.3274,2755.8,2755.2,0.00532927]
[1645876726180,0.92196753,2755.5,2755.2,0.00532927]
[1645876727215,0.92196753,2755.5,2755.2,0.00035225]
[1645876727216,0.91699119,2755.5,2755.2,0.00035225]
[1645876727420,0.92196759,2755.5,2755.2,0.0053293]
[1645876727819,0.92196759,2755.5,2755.3,2.67014313]
[1645876728028,0.0049764,2755.5,2755.4,1.53364747]
[1645876728422,0.00394927,2755.9,2755.4,9.09194747]
[1645876728625,2.28213468,2757.2,2755.4,9.09194747]
[1645876728626,0.00394927,2756.1,2755.5,1.96764747]
[1645876728822,0.00497642,2755.6,2755.5,13.43057]
[1645876729020,0.91699119,2756.3,2756.2,1.09190454]
[1645876729221,0.91699119,2756.4,2756.2,1.09190454]
[1645876729422,0.91699119,2756.5,2756.1,0.9074344]
[1645876730030,0.91699119,2756.6,2756.1,0.9074344]
[1645876731076,0.00313894,2756.5,2756.1,0.9074344]
[1645876731275,0.00313894,2756.5,2756.2,1.35279173]
[1645876732080,0.91699119,2756.6,2756.2,1.35279173]
[1645876732277,0.00292942,2756.5,2756.2,1.35279173]
[1645876733077,0.91699119,2756.7,2756.2,1.35279173]
[1645876733283,0.91699119,2756.7,2756.2,1.53428173]
[1645876733480,0.00476926,2756.5,2756.4,0.9073834]
[1645876734519,0.00394914,2756.9,2756.4,0.9073834]
[1645876734719,0.0047692,2756.6,2756.4,0.9073834]
[1645876735521,0.00394914,2756.9,2756.4,0.9073834]
[1645876735721,0.91699119,2757.0,2756.4,0.9073834]
[1645876735923,0.00476916,2756.6,2756.4,0.9073834]
[1645876736724,0.00394914,2757.0,2756.4,0.9073834]
[1645876736922,0.91699119,2757.1,2756.4,0.9073834]
[1645876737322,0.00464092,2756.6,2756.4,0.9073834]
[1645876738023,0.00394914,2757.0,2756.4,0.9073834]
[1645876738281,0.00464092,2756.6,2756.4,0.9073834]
[1645876738673,0.00464092,2756.6,2756.2,3.16748703]
[1645876739273,0.00394914,2757.1,2756.1,0.36295]
[1645876739478,0.00464098,2756.5,2755.9,3.1079]
[1645876740381,0.00394914,2756.8,2755.9,3.1079]
[1645876740583,0.00464968,2756.3,2755.9,4.30640293]
[1645876741581,0.00394914,2756.8,2755.9,4.30640293]
[1645876741881,0.00464974,2756.2,2755.9,4.30640293]
[1645876742819,0.00394914,2756.8,2755.9,4.30640293]
[1645876743025,0.00464978,2756.2,2755.9,3.1079]
[1645876743826,0.00464978,2756.2,2755.7,1.8149891]
[1645876744026,0.91699119,2756.7,2755.6,0.00594474]
[1645876744027,0.2393,2756.5,2755.6,0.00594474]
[1645876744425,0.00465987,2756.2,2755.6,0.00594474]
[1645876745227,0.92094033,2756.6,2755.6,0.00594474]
[1645876745427,9.35672395,2756.8,2755.6,0.00594474]
[1645876745428,0.00465997,2756.0,2755.6,0.00594474]
[1645876746580,0.00281609,2755.9,2755.6,0.00594474]
[1645876747578,0.91699119,2756.1,2755.6,0.00594474]
[1645876747978,0.00281542,2755.9,2755.6,0.00594474]
[1645876748784,0.92094033,2756.3,2755.6,0.00594474]
[1645876748982,0.00394914,2756.3,2755.6,0.00594474]
[1645876749184,0.00466236,2755.9,2755.6,0.00594474]
[1645876750055,0.00394914,2756.3,2755.6,0.00594474]
[1645876750254,0.91699119,2756.4,2755.6,0.00594474]
[1645876750255,0.00466236,2755.9,2755.6,0.00594474]
[1645876750454,0.00466236,2755.9,2755.6,0.00438208]
[1645876751259,0.00394914,2756.3,2755.6,0.00438208]
[1645876751760,0.00473243,2755.9,2755.6,0.00438208]
[1645876752159,0.00473243,2755.9,2755.6,1.22589517]
[1645876752359,0.92094033,2756.6,2755.6,0.00438208]
[1645876752760,0.00473243,2755.9,2755.6,0.00438208]
[1645876753565,0.92094033,2756.6,2755.6,0.00438208]
[1645876753971,0.00473243,2755.9,2755.6,0.00438208]
[1645876754777,0.00394914,2756.4,2755.6,0.00438208]
[1645876754975,0.91699119,2756.5,2755.6,1.42698094]
[1645876755173,0.00465774,2755.9,2755.6,1.42698094]
[1645876755373,0.00465774,2755.9,2755.6,0.00438208]
[1645876755975,0.00394914,2756.4,2755.6,0.00438208]
[1645876756177,0.91699119,2756.5,2755.6,0.00438208]
[1645876756479,0.00465774,2755.9,2755.6,1.18190449]
[1645876756676,0.00465774,2755.9,2755.6,0.00438208]
[1645876757324,0.00394914,2756.4,2755.6,0.00438208]
[1645876757523,0.00465774,2755.9,2755.6,0.00438208]
[1645876758130,0.00465774,2755.9,2755.6,1.23936664]
[1645876758535,0.00394914,2756.4,2755.6,1.23936664]
[1645876758736,0.00281516,2755.9,2755.6,1.23936664]
[1645876759535,0.00394914,2756.4,2755.6,1.23936664]
[1645876759735,0.91699119,2756.5,2755.6,1.23936664]
[1645876759935,0.00281516,2755.9,2755.6,0.00438208]
[1645876760874,0.00394914,2756.4,2755.6,0.00438208]
[1645876760875,0.91699119,2756.3,2755.6,0.00438208]
[1645876761075,0.00466506,2755.9,2755.6,0.00438208]
[1645876762076,0.91699119,2756.2,2755.6,0.00438208]
[1645876762277,0.00287355,2755.9,2755.6,0.00438208]
[1645876763277,0.91699119,2756.2,2755.6,0.00438208]
[1645876763577,0.00287355,2755.9,2755.6,0.00438208]
[1645876764382,0.91699119,2756.2,2755.6,0.00438208]
[1645876764613,0.00287355,2755.9,2755.6,0.00438208]
[1645876765618,0.91699119,2756.2,2755.6,0.00438208]
[1645876766018,0.00394914,2756.4,2755.6,1.31485609]
[1645876766019,0.00470946,2755.9,2755.6,1.31485609]
[1645876766220,0.00470946,2755.9,2755.6,0.00438208]
[1645876766919,0.91699119,2756.3,2755.6,0.00438208]
[1645876767121,0.00470946,2755.9,2755.6,0.00438208]
[1645876767819,0.00470946,2755.9,2755.6,1.21456086]
[1645876768020,0.00394914,2756.2,2755.6,0.00438208]
[1645876768282,0.00470946,2755.9,2755.6,0.00438208]
[1645876769278,0.92094033,2756.2,2755.6,1.0991536]
[1645876769475,0.00464861,2755.9,2755.6,1.0991536]
[1645876770477,0.91699119,2756.2,2755.6,1.0991536]
[1645876770681,0.00464861,2755.9,2755.6,0.00438208]
[1645876771681,0.91699119,2756.2,2755.6,0.00438208]
[1645876771885,0.00464861,2755.9,2755.6,0.00438208]
[1645876772517,0.00464861,2755.9,2755.6,0.00357857]
[1645876772923,0.91699119,2756.2,2755.6,0.00357857]
[1645876773122,0.00465267,2755.9,2755.6,0.00357857]
[1645876774122,0.91699119,2756.2,2755.6,0.00357857]
[1645876774322,0.00465267,2755.9,2755.6,0.00357857]
[1645876775322,0.91699119,2756.2,2755.6,0.00357857]
[1645876775522,0.00465267,2755.9,2755.6,0.00357857]
[1645876775780,0.00465267,2755.9,2755.6,1.53692801]
[1645876776571,0.91699119,2756.2,2755.6,1.53692801]
[1645876776774,0.0046524,2755.9,2755.6,1.53692801]
[1645876777571,0.91699119,2756.2,2755.6,1.53692801]
[1645876777975,0.00435149,2755.9,2755.6,1.53692801]
[1645876778875,0.86699119,2756.2,2755.6,1.53692801]
[1645876779074,0.00435149,2755.9,2755.6,1.53692801]
[1645876779731,0.00435149,2755.9,2755.5,2.1028512]
[1645876780127,1.37857801,2756.5,2755.5,2.1028512]
[1645876780328,0.00436158,2755.8,2755.5,1.1952]
[1645876781133,0.00436158,2755.8,2755.5,1.1452]
[1645876781330,0.00394914,2756.3,2755.5,1.1452]
[1645876781532,0.00436161,2755.8,2755.4,7.2583]
[1645876782530,4.87462887,2756.1,2755.4,7.2583]
[1645876782730,0.00438161,2755.7,2755.4,7.2583]
[1645876783578,4.87462887,2756.1,2755.4,7.2583]
[1645876783784,1.37462887,2756.0,2755.4,7.2583]
[1645876783983,0.00281185,2755.7,2755.4,7.2583]
[1645876784783,1.37462887,2756.0,2755.4,7.2583]
[1645876785182,0.00281185,2755.7,2755.4,7.2583]
[1645876785391,2.14094072,2755.7,2755.4,7.2583]
[1645876785585,4.87462887,2755.6,2755.4,7.2583]
[1645876785784,3.5,2755.5,2755.4,7.2583]
[1645876785983,4.87462887,2755.5,2755.4,7.2583]
[1645876786183,3.5,2755.5,2755.4,7.2583]
[1645876786386,1.0,2755.5,2755.4,7.2583]
[1645876786593,1.523,2755.6,2755.4,7.2583]
[1645876786787,7.17928768,2755.7,2755.4,7.2583]
[1645876787221,7.17462887,2755.7,2755.4,7.2583]
[1645876787419,6.17462887,2755.7,2755.4,7.2583]
[1645876787622,1.37462887,2755.6,2755.4,7.2583]
[1645876787823,0.3,2755.7,2755.4,7.2583]
[1645876788027,0.9178294,2755.5,2755.4,7.2583]
[1645876788425,0.9178294,2755.6,2755.4,7.2583]
[1645876788624,3.49762887,2755.8,2755.4,7.2583]
[1645876788625,1.37462887,2755.7,2755.4,7.2583]
[1645876788825,1.37462887,2755.6,2755.4,7.2583]
[1645876789525,1.67462887,2755.7,2755.4,7.2583]
[1645876789725,1.37462887,2755.6,2755.4,7.2583]
[1645876790127,0.20929529,2755.7,2755.4,7.2583]
[1645876790128,1.58392416,2755.7,2755.4,7.2583]
[1645876791169,0.91727312,2755.5,2755.4,7.2583]
[1645876791381,1.58890728,2755.7,2755.4,7.2583]
[1645876791573,0.91727344,2755.5,2755.4,7.2583]
[1645876795823,0.00483523,2755.7,2755.4,7.2583]
[1645876796026,1.37462887,2755.5,2755.4,7.2583]
[1645876797826,0.3,2755.5,2755.4,7.2583]
[1645876798029,0.3,2755.5,2755.4,4.80406029]
[1645876798266,1.78012395,2755.6,2755.4,4.80406029]
[1645876798467,1.823,2755.6,2755.4,4.80406029]
[1645876798673,1.3737422,2755.5,2755.4,4.80406029]
[1645876799074,0.3737422,2755.5,2755.4,4.80406029]
[1645876799274,0.3737422,2755.5,2755.2,0.00035225]
[1645876799275,11.03,2755.4,2755.2,0.00035225]
[1645876799474,3.5,2755.3,2755.2,0.00035225]
[1645876799673,0.523,2755.3,2755.2,0.00035225]
[1645876800877,15.053,2755.3,2755.2,0.00035225]
[1645876801274,16.053,2755.3,2755.2,0.00035225]
[1645876802130,21.053,2755.3,2755.2,0.00035225]
[1645876802330,24.69250737,2755.3,2755.2,0.00035225]
[1645876802529,29.26108715,2755.3,2755.2,0.00035225]
[1645876802735,25.76108715,2755.3,2755.2,0.00035225]
[1645876802936,25.81527009,2755.3,2755.2,0.00035225]
[1645876803339,23.98476229,2755.3,2755.2,0.00035225]
[1645876803734,25.81309357,2755.3,2755.2,0.00035225]
[1645876804133,23.07502159,2755.3,2755.2,0.00035225]
[1645876804536,11.03,2755.1,2754.8,0.25]
[1645876804838,0.3,2754.9,2753.6,0.00330826]
[1645876805038,0.91418551,2754.7,2753.6,1.15830826]
[1645876805238,1.21418551,2754.7,2753.6,1.155]
[1645876805440,1.21418551,2754.7,2753.7,0.00330826]
[1645876805638,0.3,2754.7,2754.1,0.00451342]
[1645876805870,1.73718551,2754.8,2754.1,0.00451342]
[1645876806473,0.05418294,2754.4,2753.7,0.00330826]
[1645876806874,0.05418294,2754.4,2753.6,1.1275692]
[1645876807076,0.05418294,2754.4,2753.9,0.18164]
[1645876807276,0.48012395,2755.4,2754.1,0.3627]
[1645876807277,0.91418551,2755.4,2754.1,0.3627]
[1645876807475,0.91418551,2755.4,2754.2,3.86600826]
[1645876807673,0.91418551,2755.4,2754.3,1.2339]
[1645876807873,0.91418551,2755.4,2754.3,1.23720826]
[1645876808074,7.8188,2755.6,2754.4,3.8627]
[1645876808075,0.05418294,2754.8,2754.4,3.8627]
[1645876808274,4.33398551,2755.6,2754.5,0.00330826]
[1645876808480,3.64008551,2755.8,2755.1,1.26079144]
[1645876808678,1.39430946,2755.9,2755.2,3.5]
[1645876808976,0.48012395,2755.9,2755.1,1.62349144]
[1645876809176,0.48012395,2755.9,2755.5,3.70548893]
[1645876809529,0.05418294,2755.7,2755.5,3.70548893]
[1645876809924,0.48012395,2755.9,2755.5,3.70548893]
[1645876811231,0.05418294,2755.7,2755.5,3.70548893]
[1645876811432,0.48012395,2755.9,2755.5,3.70548893]
[1645876811633,0.0047039,2755.8,2755.6,0.3627]
[1645876811829,0.0047039,2755.8,2755.6,3.8627]
[1645876812033,0.0047039,2755.8,2755.7,3.5]
[1645876812430,50.0,2756.0,2755.7,3.5]
[1645876812631,50.0,2756.0,2755.8,0.3627]
[1645876812832,0.00479146,2755.9,2755.7,3.5]
[1645876813032,0.00479146,2755.9,2755.5,8.11313133]
[1645876813276,0.00479146,2755.9,2755.5,7.20548893]
[1645876813681,50.0,2756.0,2755.5,3.70548893]
[1645876813876,50.0,2756.0,2755.6,3.57746082]
[1645876813877,0.00479149,2755.8,2755.6,3.57746082]
[1645876814081,0.00479149,2755.8,2755.7,0.3627]
[1645876814281,0.05897443,2755.8,2755.7,0.3627]
[1645876814481,0.00479149,2755.8,2755.7,5.43122918]
[1645876814680,0.00479149,2755.8,2755.7,2.21539541]
[1645876814881,50.0,2756.0,2755.7,2.21539541]
[1645876815081,50.0,2756.0,2755.8,0.18151]
[1645876815282,0.00444702,2755.9,2755.8,0.18151]
[1645876815683,39.93073007,2756.0,2755.8,0.18151]
[1645876815988,7.82032468,2757.8,2755.8,0.18151]
[1645876815989,0.91418551,2757.2,2756.1,0.3627]
[1645876816191,0.91418551,2757.4,2756.4,0.3627]
[1645876816387,0.91418551,2757.5,2756.6,0.3627]
[1645876816585,0.91418551,2757.5,2756.8,0.3627]
[1645876816791,1.14632903,2757.4,2756.5,3.5]
[1645876817054,1.14632903,2757.4,2756.1,3.5]
[1645876817055,0.91418551,2757.3,2756.1,3.5]
[1645876817250,0.91418551,2757.3,2756.0,0.66137]
[1645876817444,2.06051454,2757.4,2756.1,3.5]
[1645876817844,1.20633185,2756.9,2756.1,3.8627]
[1645876818445,0.91418551,2757.4,2756.1,3.8627]
[1645876818651,0.91418551,2757.4,2756.3,1.27007]
[1645876818851,0.00315309,2756.6,2756.3,1.27007]
[1645876819046,0.00315309,2756.6,2756.3,0.3627]
[1645876819247,0.00315309,2756.6,2756.1,0.54419]
[1645876819646,0.91418551,2757.3,2756.4,1.85279352]
[1645876819849,1.36891162,2757.6,2756.5,1.24004512]
[1645876819850,0.91418551,2757.4,2756.5,1.24004512]
[1645876820346,0.91418551,2757.5,2756.5,1.24004512]
[1645876820773,1.36891162,2757.7,2756.4,3.70548893]
[1645876820774,0.91418551,2757.7,2756.4,7.20548893]
[1645876821271,0.00498211,2757.1,2756.4,7.20548893]
[1645876821479,0.00498211,2757.1,2756.4,3.70548893]
[1645876822275,1.33074928,2757.2,2756.4,3.70548893]
[1645876822476,0.00498228,2756.9,2756.4,3.70548893]
[1645876822678,0.00498228,2756.9,2756.5,0.3627]
[1645876822876,0.00498228,2756.9,2756.5,3.8627]
[1645876823076,0.00498228,2756.9,2756.4,3.70548893]
[1645876823278,0.91418551,2757.4,2756.4,3.70548893]
[1645876823479,0.00392953,2757.3,2756.4,3.70548893]
[1645876823679,0.00498231,2756.8,2756.4,3.70548893]
[1645876824539,1.14217041,2756.9,2756.4,3.70548893]
[1645876824540,1.44217041,2756.9,2756.4,3.70548893]
[1645876824741,1.44217041,2756.9,2756.4,1.85269541]
[1645876824742,1.14217041,2756.9,2756.4,1.85269541]
[1645876825040,1.14217041,2756.9,2755.9,7.2572]
[1645876825041,0.00498238,2756.7,2756.6,3.70548893]
[1645876825738,1.14217041,2756.9,2756.6,3.70548893]
[1645876825938,0.00498235,2756.8,2756.6,3.70548893]
[1645876826943,0.07110272,2757.3,2756.6,3.70548893]
[1645876827145,0.00498231,2756.8,2756.6,3.70548893]
[1645876827751,0.00498231,2756.8,2756.7,3.5]
[1645876828146,0.07110272,2757.3,2756.7,3.5]
[1645876828380,0.07110272,2757.3,2756.8,0.3627]
[1645876828580,0.00498228,2756.9,2756.8,0.3627]
[1645876828776,0.00498228,2756.9,2756.8,4.97057107]
[1645876829181,0.02435654,2757.7,2757.1,0.3627]
[1645876829380,0.02435654,2757.5,2757.2,3.8627]
[1645876829576,0.02435654,2757.5,2757.2,0.3627]
[1645876830182,0.02435654,2757.5,2757.3,1.3845703]
[1645876830375,0.02435654,2757.5,2757.4,3.70548893]
[1645876830776,0.02750629,2757.5,2757.4,3.70548893]
[1645876831581,0.02750629,2757.5,2757.4,7.20548893]
[1645876831778,0.02435654,2757.5,2757.4,3.70548893]
[1645876832045,8.181e-05,2757.7,2757.5,7.5]
[1645876832229,8.181e-05,2757.7,2757.6,4.22407]
[1645876832440,0.14417233,2758.1,2757.6,4.22407]
[1645876832441,0.19091852,2758.1,2757.7,8.0546358]
[1645876832634,0.00390953,2758.8,2758.1,0.3627]
[1645876832833,0.02435653,2758.9,2758.1,1.79237]
[1645876833035,0.02435653,2758.9,2758.2,1.78104825]
[1645876833235,0.02435653,2758.9,2758.3,15.3927]
[1645876833437,0.02435653,2758.9,2758.4,4.7693903]
[1645876833733,0.02435654,2758.7,2758.4,1.2066903]
[1645876834635,0.02435654,2758.7,2758.4,0.9066903]
[1645876834834,0.02435654,2758.7,2758.4,1.2066903]
[1645876835436,0.02435654,2758.7,2758.4,5.0693303]
[1645876835637,0.02435654,2758.7,2758.6,3.70548893]
[1645876835638,0.02750574,2758.7,2758.6,3.70548893]
[1645876836684,0.02435654,2758.7,2758.6,3.70548893]
[1645876838087,1.21583172,2759.2,2758.6,3.70548893]
[1645876838286,0.05044346,2759.2,2758.6,3.70548893]
[1645876838486,0.05044346,2759.2,2758.6,3.88681893]
[1645876839087,0.02855467,2759.2,2758.6,3.88681893]
[1645876839287,0.02855467,2759.2,2758.6,3.70548893]
[1645876839288,1.27573365,2759.2,2758.6,3.70548893]
[1645876839732,1.24717898,2759.2,2758.6,3.70548893]
[1645876840430,0.00314228,2759.0,2758.6,3.70548893]
[1645876840631,0.00314228,2759.0,2758.6,1.85269541]
[1645876840831,0.00314228,2759.0,2758.5,0.90664]
[1645876841034,0.00314228,2759.0,2758.8,3.70548893]
[1645876841431,1.24717898,2759.2,2758.8,3.70548893]
[1645876841632,0.00498404,2758.9,2758.8,2.31954322]
[1645876842636,1.24717898,2759.2,2758.8,2.31954322]
[1645876843034,0.00498406,2759.0,2758.8,2.31954322]
[1645876843682,1.24717898,2759.2,2758.8,2.31954322]
[1645876844085,0.00498403,2759.0,2758.8,2.31954322]
[1645876844887,1.24717898,2759.2,2758.8,2.31954322]
[1645876845289,0.00498403,2759.0,2758.8,2.31954322]
[1645876845889,0.00498403,2759.0,2758.8,1.85269541]
[1645876846090,1.30324368,2758.6,2758.0,1.2088]
[1645876846288,1.30324368,2758.6,2758.5,1.85269541]
[1645876846689,0.00498403,2759.0,2758.5,1.85269541]
[1645876846889,12.03498403,2759.0,2758.5,1.85269541]
[1645876847130,11.03,2758.8,2758.5,1.85269541]
[1645876847331,0.523,2758.7,2758.5,1.85269541]
[1645876848330,1.10789554,2758.6,2758.5,1.85269541]
[1645876848534,1.63089554,2758.6,2758.5,1.85269541]